fUSD/lending_fUSD_20250116
["ID","MTS","AMOUNT","RATE_DAILY","PERIOD"]
[349218073,1737040255215,-153.0,0.00039012,2]
[349218074,1737040255225,-153.0,0.00039012,2]
[349218075,1737040255234,-153.0,0.00039012,2]
[349218076,1737040255243,-153.0,0.00039012,2]
[349218077,1737040255252,-153.0,0.00039012,2]
[349218078,1737040255261,-153.0,0.00039012,2]
[349218079,1737040255273,-153.0,0.00039012,2]
[349218080,1737040255282,-153.0,0.00039012,2]
[349218081,1737040255292,-153.0,0.00039012,2]
[349218082,1737040255301,-153.0,0.00039012,2]
[349218083,1737040255311,-153.0,0.00039012,2]
[349218084,1737040255321,-153.0,0.00039012,2]
[349218085,1737040255330,-153.0,0.00039012,2]
[349218086,1737040255343,-153.0,0.00039012,2]
[349218087,1737040255353,-153.0,0.00039012,2]
[349218088,1737040255363,-153.0,0.00039012,2]
[349218089,1737040255373,-153.0,0.00039012,2]
[349218090,1737040255383,-153.0,0.00039012,2]
[349218091,1737040255393,-153.0,0.00039012,2]
[349218092,1737040255402,-153.0,0.00039012,2]
[349218093,1737040255411,-153.0,0.00039012,2]
[349218094,1737040255421,-153.0,0.00039012,2]
[349218095,1737040255430,-153.0,0.00039012,2]
[349218096,1737040255439,-153.0,0.00039012,2]
[349218097,1737040255449,-153.0,0.00039012,2]
[349218098,1737040255459,-153.0,0.00039012,2]
[349218099,1737040255469,-153.0,0.00039012,2]
[349218100,1737040255479,-153.0,0.00039012,2]
[349218101,1737040255489,-153.0,0.00039012,2]
[349218102,1737040255499,-153.0,0.00039012,2]
[349218103,1737040255508,-153.0,0.00039012,2]
[349218104,1737040255519,-153.0,0.00039012,2]
[349218105,1737040255529,-153.0,0.00039012,2]
[349218106,1737040255539,-153.0,0.00039012,2]
[349218107,1737040255549,-153.0,0.00039012,2]
[349218108,1737040255560,-153.0,0.00039012,2]
[349218109,1737040255569,-153.0,0.00039012,2]
[349218110,1737040255579,-153.0,0.00039012,2]
[349218111,1737040255589,-153.0,0.00039012,2]
[349218112,1737040255599,-153.0,0.00039012,2]
[349218113,1737040255609,-153.0,0.00039012,2]
[349218114,1737040255619,-153.0,0.00039012,2]
[349218115,1737040255629,-153.0,0.00039012,2]
[349218116,1737040255639,-153.0,0.00039012,2]
[349218117,1737040255650,-153.0,0.00039012,2]
[349218118,1737040255660,-153.0,0.00039012,2]
[349218119,1737040255670,-153.0,0.00039012,2]
[349218120,1737040255680,-153.0,0.00039012,2]
[349218121,1737040255689,-153.0,0.00039012,2]
[349218122,1737040255699,-153.0,0.00039012,2]
[349218123,1737040255708,-153.0,0.00039012,2]
[349218124,1737040255718,-153.0,0.00039012,2]
[349218125,1737040255728,-153.0,0.00039012,2]
[349218126,1737040255740,-153.0,0.00039012,2]
[349218127,1737040255749,-153.0,0.00039012,2]
[349218128,1737040255759,-153.0,0.00039012,2]
[349218129,1737040255768,-153.0,0.00039012,2]
[349218130,1737040255779,-153.0,0.00039012,2]
[349218131,1737040255789,-153.0,0.00039012,2]
[349218132,1737040255799,-153.0,0.00039012,2]
[349218133,1737040255809,-153.0,0.00039012,2]
[349218134,1737040255820,-153.0,0.00039012,2]
[349218135,1737040255830,-153.0,0.00039012,2]
[349218136,1737040255840,-153.0,0.00039012,2]
[349218137,1737040255849,-153.0,0.00039012,2]
[349218138,1737040255859,-153.0,0.00039012,2]
[349218139,1737040255870,-153.0,0.00039012,2]
[349218140,1737040255880,-153.0,0.00039012,2]
[349218141,1737040255890,-153.0,0.00039012,2]
[349218142,1737040255900,-153.0,0.00039012,2]
[349218143,1737040255910,-153.0,0.00039012,2]
[349218144,1737040255920,-383.0,0.00039018,5]
[349218145,1737040255930,-1597.98,0.00039021,18]
[349218146,1737040255940,-500.0,0.00039021,18]
[349218147,1737040255950,-439.65,0.00039021,18]
[349218148,1737040255960,-330.33688711,0.00039022,2]
[349218149,1737040255970,-150.0,0.00039029,2]
[349218150,1737040255980,-651.01905808,0.00039038,8]
[349218151,1737040255989,-500.0,0.00039052,18]
[349218152,1737040256000,-500.0,0.00039052,18]
[349218153,1737040256009,-488.24,0.00039052,18]
[349218154,1737040256022,-507.59,0.00039052,18]
[349218155,1737040256032,-500.0,0.00039052,18]
[349218156,1737040256041,-500.0,0.00039052,18]
[349218157,1737040256051,-25080.1066073,0.00039052,120]
[349218158,1737040256061,-448.25086654,0.00039056,120]
[349218159,1737040256071,-539.58773298,0.00039059,18]
[349218160,1737040256080,-4611.43379269,0.0003906,120]
[349218161,1737040256092,-3940.39,0.0003906,18]
[349218162,1737040256102,-500.0,0.0003906,18]
[349218163,1737040256113,-613.30542284,0.0003906,18]
[349218164,1737040256123,-500.0,0.0003906,18]
[349218165,1737040256133,-500.0,0.0003906,18]
[349218166,1737040256144,-500.0,0.0003906,18]
[349218167,1737040256154,-500.0,0.0003906,18]
[349218168,1737040256164,-500.0,0.0003906,18]
[349218169,1737040256173,-500.0,0.0003906,18]
[349218170,1737040256183,-537.04597116,0.0003906,18]
[349218171,1737040256193,-500.0,0.0003906,18]
[349218172,1737040256203,-500.0,0.0003906,18]
[349218173,1737040256213,-500.0,0.0003906,18]
[349218174,1737040256223,-500.0,0.0003906,18]
[349218175,1737040256233,-500.0,0.0003906,18]
[349218176,1737040256243,-404.76,0.0003906,18]
[349218177,1737040256253,-500.0,0.0003906,18]
[349218178,1737040256263,-402.39101156,0.0003906,18]
[349218179,1737040256274,-500.0,0.0003906,18]
[349218180,1737040256283,-500.0,0.0003906,18]
[349218181,1737040256294,-500.0,0.0003906,18]
[349218182,1737040256304,-500.0,0.0003906,18]
[349218183,1737040256314,-500.0,0.0003906,18]
[349218184,1737040256323,-500.0,0.0003906,18]
[349218185,1737040256334,-500.0,0.0003906,18]
[349218186,1737040256343,-500.0,0.0003906,18]
[349218187,1737040256353,-500.0,0.0003906,18]
[349218188,1737040256363,-500.0,0.0003906,18]
[349218189,1737040256374,-500.0,0.0003906,18]
[349218190,1737040256384,-500.0,0.0003906,18]
[349218191,1737040256393,-500.0,0.0003906,18]
[349218192,1737040256403,-500.0,0.0003906,18]
[349218193,1737040256413,-3256.12,0.0003906,18]
[349218194,1737040256424,-500.0,0.0003906,18]
[349218195,1737040256434,-500.0,0.0003906,18]
[349218196,1737040256444,-500.0,0.0003906,18]
[349218197,1737040256454,-665.87,0.0003906,18]
[349218198,1737040256464,-500.0,0.0003906,18]
[349218199,1737040256473,-500.0,0.0003906,18]
[349218200,1737040256483,-587.3,0.0003906,18]
[349218201,1737040256493,-150.52,0.0003906,18]
[349218202,1737040256504,-500.0,0.0003906,18]
[349218203,1737040256513,-500.0,0.0003906,18]
[349218204,1737040256523,-500.0,0.0003906,18]
[349218205,1737040256533,-306.09,0.0003906,18]
[349218206,1737040256543,-500.0,0.0003906,18]
[349218207,1737040256553,-500.0,0.0003906,18]
[349218208,1737040256563,-722.63,0.0003906,18]
[349218209,1737040256573,-500.0,0.0003906,18]
[349218210,1737040256582,-945.26,0.0003906,18]
[349218211,1737040256592,-500.0,0.0003906,18]
[349218212,1737040256602,-47605.7932308,0.00039061,120]
[349218213,1737040256611,-2219.43810269,0.00039062,120]
[349218214,1737040256621,-915.53627067,0.00039063,120]
[349218215,1737040256631,-10000.0,0.00039067,120]
[349218216,1737040256641,-200.0,0.0003907,120]
[349218217,1737040256651,-651.01905808,0.00039072,8]
[349218218,1737040256661,-2940.87570224,0.00039076,120]
[349218219,1737040256671,-200.0,0.00039077,120]
[349218220,1737040256681,-5425.66564019,0.0003908,120]
[349218221,1737040256690,-11036.73713971,0.00039082,120]
[349218222,1737040256700,-330.33688711,0.00039083,2]
[349218223,1737040256711,-5425.66564019,0.00039084,120]
[349218224,1737040256721,-500.0,0.00039086,18]
[349218225,1737040256731,-500.0,0.00039086,18]
[349218226,1737040256743,-500.0,0.00039086,18]
[349218227,1737040256753,-500.0,0.00039086,18]
[349218228,1737040256763,-664.06,0.00039086,18]
[349218229,1737040256774,-25080.1066073,0.00039086,120]
[349218230,1737040256784,-461.76857585,0.00039087,120]
[349218231,1737040256797,-307.8760524,0.0003909,120]
[349218232,1737040256809,-12788.78837228,0.00039092,120]
[349218233,1737040256820,-25080.1066073,0.00039095,120]
[349218234,1737040256830,-461.76857585,0.00039095,120]
[349218235,1737040256840,-704.60758164,0.00039097,120]
[349218236,1737040256850,-482.86486653,0.00039099,120]
[349218237,1737040256860,-448.25086654,0.00039099,120]
[349218238,1737040256872,-651.01905808,0.00039107,8]
[349218239,1737040256882,-1451.6441587,0.00039108,120]
[349218240,1737040256898,-35296.33200439,0.00039108,120]
[349218241,1737040256909,-4577.89518393,0.00039108,120]
[349218242,1737040256919,-371.71902006,0.00039112,120]
[349218243,1737040256930,-1597.98,0.00039114,18]
[349218244,1737040256940,-500.0,0.00039114,18]
[349218245,1737040256951,-20166.57722439,0.00039115,120]
[349218246,1737040256963,-2549.06939875,0.00039115,120]
[349218247,1737040256972,-3694.81609352,0.00039121,120]
[349218248,1737040256983,-482.86486653,0.00039126,120]
[349218249,1737040256993,-164.81,0.00039126,18]
[349218250,1737040257003,-500.0,0.00039126,18]
[349218251,1737040257012,-421.94,0.00039126,18]
[349218252,1737040257021,-500.0,0.00039126,18]
[349218253,1737040257030,-11236.02964122,0.00039127,120]
[349218254,1737040257041,-1552.75873106,0.00039127,120]
[349218255,1737040257053,-500.0,0.00039129,18]
[349218256,1737040257063,-500.0,0.00039129,18]
[349218257,1737040257074,-500.0,0.00039129,18]
[349218258,1737040257084,-500.0,0.00039129,18]
[349218259,1737040257094,-722.63,0.00039129,18]
[349218260,1737040257105,-12788.78837228,0.0003913,120]
[349218261,1737040257115,-482.86486653,0.00039131,120]
[349218262,1737040257126,-7277.01,0.00039133,120]
[349218263,1737040257137,-651.01905808,0.00039141,8]
[349218264,1737040257147,-200.0,0.00039142,120]
[349218265,1737040257158,-200.0,0.00039142,120]
[349218266,1737040257170,-330.33688711,0.00039143,2]
[349218267,1737040257180,-12788.78837228,0.00039145,120]
[349218268,1737040257191,-3940.39,0.00039147,18]
[349218269,1737040257201,-500.0,0.00039147,18]
[349218270,1737040257211,-500.0,0.00039147,18]
[349218271,1737040257221,-500.0,0.00039147,18]
[349218272,1737040257232,-500.0,0.00039147,18]
[349218273,1737040257242,-500.0,0.00039147,18]
[349218274,1737040257253,-500.0,0.00039147,18]
[349218275,1737040257263,-514.87,0.00039147,18]
[349218276,1737040257273,-500.0,0.00039147,18]
[349218277,1737040257283,-500.0,0.00039147,18]
[349218278,1737040257293,-500.0,0.00039147,18]
[349218279,1737040257304,-500.0,0.00039147,18]
[349218280,1737040257314,-500.0,0.00039147,18]
[349218281,1737040257324,-500.0,0.00039147,18]
[349218282,1737040257334,-500.0,0.00039147,18]
[349218283,1737040257344,-500.0,0.00039147,18]
[349218284,1737040257354,-500.0,0.00039147,18]
[349218285,1737040257364,-500.0,0.00039147,18]
[349218286,1737040257375,-622.07,0.00039147,18]
[349218287,1737040257384,-500.0,0.00039147,18]
[349218288,1737040257395,-500.0,0.00039147,18]
[349218289,1737040257406,-500.0,0.00039147,18]
[349218290,1737040257416,-500.0,0.00039147,18]
[349218291,1737040257426,-500.0,0.00039147,18]
[349218292,1737040257436,-500.0,0.00039147,18]
[349218293,1737040257445,-500.0,0.00039147,18]
[349218294,1737040257455,-3256.12,0.00039147,18]
[349218295,1737040257465,-500.0,0.00039147,18]
[349218296,1737040257476,-665.87,0.00039147,18]
[349218297,1737040257486,-500.0,0.00039147,18]
[349218298,1737040257496,-500.0,0.00039147,18]
[349218299,1737040257506,-500.0,0.00039147,18]
[349218300,1737040257516,-500.0,0.00039147,18]
[349218301,1737040257527,-500.0,0.00039147,18]
[349218302,1737040257537,-500.0,0.00039147,18]
[349218303,1737040257547,-945.26,0.00039147,18]
[349218304,1737040257557,-3694.81609352,0.00039147,120]
[349218305,1737040257567,-36747.97616309,0.00039148,120]
[349218306,1737040257576,-232.31559521,0.00039153,18]
[349218307,1737040257586,-500.0,0.00039153,18]
[349218308,1737040257597,-500.0,0.00039153,18]
[349218309,1737040257609,-500.0,0.00039153,18]
[349218310,1737040257619,-664.06,0.00039153,18]
[349218311,1737040257629,-371.71902006,0.00039153,120]
[349218312,1737040257640,-17274.68837205,0.00039154,120]
[349218313,1737040257652,-975.605,0.00039154,120]
[349218314,1737040257665,-4903.4118,0.00039154,120]
[349218315,1737040257677,-570.79035,0.00039154,120]
[349218316,1737040257691,-389.34444908,0.00039154,120]
[349218317,1737040257702,-1650.64148692,0.00039154,120]
[349218318,1737040257714,-2153.21857437,0.00039154,120]
[349218319,1737040257783,-25158.163637,0.00039154,120]
[349218320,1737040257795,-435.68171857,0.00039154,120]
[349218321,1737040257807,-415.09480767,0.00039154,120]
[349218322,1737040257821,-308.21041604,0.00039154,120]
[349218323,1737040257877,-500.0,0.00038356,18]
[349218324,1737040257887,-474.35,0.00038356,18]
[349218325,1737040257898,-25.65,0.00038356,18]
[349218326,1737040257909,-236.87313222,0.00038356,18]
[349218327,1737040257921,-263.12686778,0.00038356,18]
[349218328,1737040257931,-2769.39274635,0.00039154,120]
[349218329,1737040257944,-975.05266918,0.00039154,120]
[349218330,1737040257969,-500.0,0.00038356,18]
[349218331,1737040257979,-500.0,0.00038356,18]
[349218332,1737040257988,-8817.30075919,0.00039154,120]
[349218333,1737040258000,-495.60086,0.00039154,120]
[349218334,1737040258013,-26919.61751187,0.00039154,120]
[349218335,1737040258022,-448.25086654,0.00039155,120]
[349218336,1737040258032,-150.0,0.00039155,2]
[349218337,1737040258042,-1152.85844817,0.00039155,120]
[349218338,1737040258051,-36404.06174782,0.00039163,120]
[349218339,1737040258063,-285.696252,0.00039163,120]
[349218340,1737040258083,-500.0,0.00038356,18]
[349218341,1737040258094,-31.4703368,0.00038999,18]
[349218342,1737040258106,-468.5296632,0.00038999,18]
[349218343,1737040258117,-58.21816327,0.00039163,120]
[349218344,1737040258127,-128.10717353,0.00039176,8]
[349218345,1737040258141,-522.91188455,0.00039176,8]
[349218346,1737040258151,-172.39423896,0.00039176,2]
[349218347,1737040258162,-500.0,0.00039177,18]
[349218348,1737040258172,-82.17387649,0.00039177,18]
[349218349,1737040258185,-1515.80612351,0.00039177,18]
[349218350,1737040258195,-500.0,0.00039177,18]
[349218351,1737040258205,-200.52673549,0.00039177,18]
[349218352,1737040258218,-299.47326451,0.00039177,18]
[349218353,1737040258228,-221.04487908,0.00039177,18]
[349218354,1737040258399,-500.0,0.00038356,18]
[349218355,1737040258410,-500.0,0.00038999,18]
[349218356,1737040258420,-500.0,0.00038999,18]
[349218357,1737040258430,-500.0,0.00038999,18]
[349218358,1737040258440,-500.0,0.00038999,18]
[349218359,1737040258450,-500.0,0.00038999,18]
[349218360,1737040258460,-286.68076625,0.00038999,18]
[349218361,1737040258472,-213.31923375,0.00038999,18]
[349218362,1737040258483,-500.0,0.00038999,18]
[349218363,1737040258493,-500.0,0.00038999,18]
[349218364,1737040258503,-345.01023518,0.00038999,18]
[349218365,1737040258515,-154.98976482,0.00038999,18]
[349218366,1737040258525,-118.89750721,0.0003906,18]
[349218367,1737040258537,-381.10249279,0.0003906,18]
[349218368,1737040258548,-278.95512092,0.00039177,18]
[349218369,1737040258558,-722.63,0.00039177,18]
[349218370,1737040258568,-500.0,0.00039177,18]
[349218371,1737040258577,-609.48,0.00039177,18]
[349218372,1737040258588,-1000.0,0.00039178,120]
[349218373,1737040258598,-1000.0,0.00039178,120]
[349218374,1737040258608,-1000.0,0.00039178,120]
[349218375,1737040258619,-1000.0,0.00039178,120]
[349218376,1737040258630,-1000.0,0.00039178,120]
[349218377,1737040258640,-430.97,0.00039178,120]
[349218378,1737040258651,-4157.63440931,0.00039178,120]
[349218379,1737040258663,-4791.17830158,0.00039178,120]
[349218380,1737040258675,-975.06641355,0.00039178,120]
[349218381,1737040258687,-4479.20749108,0.00039178,120]
[349218382,1737040258703,-1723.09854879,0.00039178,120]
[349218383,1737040258715,-458.00134583,0.00039178,120]
[349218384,1737040258727,-2829.18561165,0.00039178,120]
[349218385,1737040258741,-484.08730404,0.00039178,120]
[349218386,1737040258753,-1228.95234825,0.00039178,120]
[349218387,1737040258765,-3953.69483322,0.00039178,120]
[349218388,1737040258775,-151.12739594,0.00039179,8]
[349218389,1737040258784,-11036.73713971,0.00039181,120]
[349218390,1737040258795,-2209.67998612,0.00039184,120]
[349218391,1737040258805,-4577.89518393,0.00039184,120]
[349218392,1737040258815,-915.53627067,0.00039189,120]
[349218393,1737040258825,-12788.78837228,0.00039189,120]
[349218394,1737040258835,-500.0,0.00039189,18]
[349218395,1737040258845,-165.54,0.00039189,18]
[349218396,1737040258855,-945.26,0.00039189,18]
[349218397,1737040258866,-3940.39,0.0003919,18]
[349218398,1737040258876,-500.0,0.0003919,18]
[349218399,1737040258887,-500.0,0.0003919,18]
[349218400,1737040259038,-500.0,0.0003919,18]
[349218401,1737040259048,-500.0,0.0003919,18]
[349218402,1737040259057,-500.0,0.0003919,18]
[349218403,1737040259067,-153.9029795,0.0003919,18]
[349218404,1737040259077,-500.0,0.0003919,18]
[349218405,1737040259087,-500.0,0.0003919,18]
[349218406,1737040259097,-484.2510479,0.0003919,18]
[349218407,1737040259107,-500.0,0.0003919,18]
[349218408,1737040259116,-320.19750647,0.0003919,18]
[349218409,1737040259126,-353.56347288,0.0003919,18]
[349218410,1737040259136,-500.0,0.0003919,18]
[349218411,1737040259147,-500.0,0.0003919,18]
[349218412,1737040259156,-500.0,0.0003919,18]
[349218413,1737040259166,-500.0,0.0003919,18]
[349218414,1737040259176,-500.0,0.0003919,18]
[349218415,1737040259185,-500.0,0.0003919,18]
[349218416,1737040259194,-500.0,0.0003919,18]
[349218417,1737040259204,-3256.12,0.0003919,18]
[349218418,1737040259213,-500.0,0.0003919,18]
[349218419,1737040259223,-665.87,0.0003919,18]
[349218420,1737040259232,-500.0,0.0003919,18]
[349218421,1737040259241,-500.0,0.0003919,18]
[349218422,1737040259251,-179.74,0.0003919,18]
[349218423,1737040259260,-500.0,0.0003919,18]
[349218424,1737040259270,-500.0,0.0003919,18]
[349218425,1737040259280,-500.0,0.0003919,18]
[349218426,1737040259289,-664.06,0.0003919,18]
[349218427,1737040259299,-36747.97616309,0.0003919,120]
[349218428,1737040259309,-915.53627067,0.00039191,120]
[349218429,1737040259319,-25080.1066073,0.00039194,120]
[349218430,1737040259328,-461.76857585,0.00039195,120]
[349218431,1737040259338,-704.60758164,0.00039196,120]
[349218432,1737040259348,-1254.00205386,0.00039198,120]
[349218433,1737040259358,-1254.00205386,0.00039198,120]
[349218434,1737040259367,-94211.81515829,0.00039199,120]
[349218435,1737040259377,-1152.85844817,0.00039199,120]
[349218436,1737040259387,-4577.89518393,0.00039199,120]
[349218437,1737040259397,-152.41,0.000392,31]
[349218438,1737040259406,-152.41,0.000392,31]
[349218439,1737040259415,-152.41,0.000392,31]
[349218440,1737040259425,-152.41,0.000392,31]
[349218441,1737040259435,-1597.98,0.000392,18]
[349218442,1737040259446,-500.0,0.000392,18]
[349218443,1737040259455,-22715.64662314,0.00039201,120]
[349218444,1737040259465,-330.33688711,0.00039204,2]
[349218445,1737040259474,-150.0,0.00039208,2]
[349218446,1737040259483,-200.0,0.0003921,2]
[349218447,1737040259493,-500.0,0.0003921,18]
[349218448,1737040259503,-500.0,0.0003921,18]
[349218449,1737040259513,-341.23,0.0003921,18]
[349218450,1737040259522,-722.63,0.0003921,18]
[349218451,1737040259532,-2219.43810269,0.0003921,120]
[349218452,1737040259542,-651.01905808,0.0003921,8]
[349218453,1737040259552,-10501.57437933,0.00039211,120]
[349218454,1737040259561,-461.76857585,0.00039212,120]
[349218455,1737040259571,-4611.43379269,0.00039215,120]
[349218456,1737040259580,-3940.39,0.00039216,18]
[349218457,1737040259590,-500.0,0.00039216,18]
[349218458,1737040259599,-500.0,0.00039216,18]
[349218459,1737040259609,-500.0,0.00039216,18]
[349218460,1737040259619,-500.0,0.00039216,18]
[349218461,1737040259629,-500.0,0.00039216,18]
[349218462,1737040259638,-447.76118873,0.00039216,18]
[349218463,1737040259648,-500.0,0.00039216,18]
[349218464,1737040259658,-500.0,0.00039216,18]
[349218465,1737040259668,-500.0,0.00039216,18]
[349218466,1737040259678,-500.0,0.00039216,18]
[349218467,1737040259687,-500.0,0.00039216,18]
[349218468,1737040259695,-500.0,0.00039216,18]
[349218469,1737040259705,-3256.12,0.00039216,18]
[349218470,1737040259715,-500.0,0.00039216,18]
[349218471,1737040259726,-665.87,0.00039216,18]
[349218472,1737040259737,-500.0,0.00039216,18]
[349218473,1737040259747,-500.0,0.00039216,18]
[349218474,1737040259757,-176.28940463,0.00039216,18]
[349218475,1737040259767,-500.0,0.00039216,18]
[349218476,1737040259777,-500.0,0.00039216,18]
[349218477,1737040259787,-500.0,0.00039216,18]
[349218478,1737040259796,-664.06,0.00039216,18]
[349218479,1737040259806,-945.26,0.00039216,18]
[349218480,1737040259817,-94211.81515829,0.00039217,120]
[349218481,1737040259827,-200.0,0.00039218,120]
[349218482,1737040259837,-2649.75808049,0.00039221,7]
[349218483,1737040259846,-3970.04985968,0.00039221,7]
[349218484,1737040259856,-2209.67998612,0.00039221,120]
[349218485,1737040259865,-461.76857585,0.00039221,120]
[349218486,1737040259876,-151.12739593,0.00039222,8]
[349218487,1737040259885,-371.71902006,0.00039223,120]
[349218488,1737040259895,-4611.43379269,0.00039227,120]
[349218489,1737040259904,-10501.57437933,0.00039231,120]
[349218490,1737040259913,-2219.43810269,0.00039232,120]
[349218491,1737040259923,-47605.7932308,0.00039234,120]
[349218492,1737040259933,-4611.43379269,0.00039238,120]
[349218493,1737040259944,-47605.7932308,0.00039241,120]
[349218494,1737040259954,-2219.43810269,0.00039244,120]
[349218495,1737040259964,-651.01905808,0.00039245,8]
[349218496,1737040259973,-1597.98,0.00039247,18]
[349218497,1737040259983,-630.39093057,0.00039247,18]
[349218498,1737040259992,-500.0,0.00039247,18]
[349218499,1737040260002,-500.0,0.00039247,18]
[349218500,1737040260011,-722.63,0.00039247,18]
[349218501,1737040260021,-500.0,0.00039247,18]
[349218502,1737040260031,-945.26,0.00039247,18]
[349218503,1737040260040,-4577.89518393,0.00039248,120]
[349218504,1737040260051,-47605.7932308,0.00039248,120]
[349218505,1737040260061,-500.0,0.00039251,18]
[349218506,1737040260071,-585.06275501,0.00039251,18]
[349218507,1737040260081,-664.06,0.00039251,18]
[349218508,1737040260091,-11036.73713971,0.00039252,120]
[349218509,1737040260101,-3940.39,0.00039257,18]
[349218510,1737040260111,-500.0,0.00039257,18]
[349218511,1737040260122,-642.10670572,0.00039257,18]
[349218512,1737040260132,-500.0,0.00039257,18]
[349218513,1737040260143,-603.0,0.00039257,18]
[349218514,1737040260153,-500.0,0.00039257,18]
[349218515,1737040260162,-500.0,0.00039257,18]
[349218516,1737040260172,-500.0,0.00039257,18]
[349218517,1737040260182,-500.0,0.00039257,18]
[349218518,1737040260192,-500.0,0.00039257,18]
[349218519,1737040260201,-580.19,0.00039257,18]
[349218520,1737040260211,-3256.12,0.00039257,18]
[349218521,1737040260221,-162.31419481,0.00039257,18]
[349218522,1737040260232,-665.87,0.00039257,18]
[349218523,1737040260242,-365.78728096,0.00039257,18]
[349218524,1737040260252,-500.0,0.00039257,18]
[349218525,1737040260262,-5425.66564019,0.00039257,120]
[349218526,1737040260272,-200.0,0.00039258,120]
[349218527,1737040260282,-3940.39,0.00039258,18]
[349218528,1737040260292,-500.0,0.00039258,18]
[349218529,1737040260301,-161.93,0.00039258,18]
[349218530,1737040260313,-500.0,0.00039258,18]
[349218531,1737040260323,-500.0,0.00039258,18]
[349218532,1737040260332,-500.0,0.00039258,18]
[349218533,1737040260343,-500.0,0.00039258,18]
[349218534,1737040260352,-3256.12,0.00039258,18]
[349218535,1737040260362,-1597.98,0.00039258,18]
[349218536,1737040260373,-665.87,0.00039258,18]
[349218537,1737040260383,-500.0,0.00039258,18]
[349218538,1737040260393,-500.0,0.00039258,18]
[349218539,1737040260403,-500.0,0.00039258,18]
[349218540,1737040260413,-722.63,0.00039258,18]
[349218541,1737040260423,-360.38,0.00039258,18]
[349218542,1737040260432,-500.0,0.00039258,18]
[349218543,1737040260441,-664.06,0.00039258,18]
[349218544,1737040260450,-945.26,0.00039258,18]
[349218545,1737040260458,-2940.87570224,0.00039258,120]
[349218546,1737040260467,-79583.49702166,0.00039259,120]
[349218547,1737040260479,-109348.04418667,0.00039259,120]
[349218548,1737040260489,-1058.0,0.00039259,5]
[349218549,1737040260499,-139848.32393735,0.00039259,120]
[349218550,1737040260512,-502.772478,0.00039259,120]
[349218551,1737040260523,-284.3,0.00039259,120]
[349218552,1737040260535,-3191.0,0.00039259,120]
[349218553,1737040260546,-452.9,0.00039259,120]
[349218554,1737040260557,-428.9,0.00039259,120]
[349218555,1737040260629,-500.0,0.00038356,18]
[349218556,1737040260639,-500.0,0.00038356,18]
[349218557,1737040260648,-153.0,0.00039012,2]
[349218558,1737040260658,-153.0,0.00039012,2]
[349218559,1737040260668,-153.0,0.00039012,2]
[349218560,1737040260678,-153.0,0.00039012,2]
[349218561,1737040260688,-153.0,0.00039012,2]
[349218562,1737040260697,-153.0,0.00039012,2]
[349218563,1737040260706,-153.0,0.00039012,2]
[349218564,1737040260717,-17373.10527008,0.00039259,120]
[349218565,1737040260732,-12836.66112021,0.00039259,120]
[349218566,1737040260746,-1523.35781705,0.00039259,120]
[349218567,1737040260757,-937.79,0.00039259,120]
[349218568,1737040260769,-3180.00002,0.00039259,120]
[349218569,1737040260781,-2951.8156895,0.00039259,120]
[349218570,1737040260802,-500.0,0.00038356,18]
[349218571,1737040260812,-153.0,0.00039012,2]
[349218572,1737040260821,-1337.55025,0.00039259,120]